fUST/lending_fUST_20251002
["ID","MTS","AMOUNT","RATE_DAILY","PERIOD"]
[388835027,1759408684932,9394.06133222,0.00016985,2]
[388835028,1759408724308,-415.82965517,0.00017532,2]
[388835029,1759408726397,-300.0,0.00017532,2]
[388835030,1759408729178,-1154.20352799,0.00017532,2]
[388835031,1759408731335,5000.0,0.00017532,2]
[388835032,1759408755484,-408.53344682,0.00017708,2]
[388835033,1759408755570,2691.60294402,0.00017532,2]
[388835034,1759408755591,2308.39705598,0.00017532,2]
[388835035,1759408759305,-300.0,0.00017708,2]
[388835036,1759408777977,5000.0,0.00017532,2]
[388835037,1759408778433,-7.29620835,0.00017708,2]
[388835038,1759408784799,-215.98654953,0.00017787,2]
[388835039,1759408784819,-184.38979694,0.00017886,2]
[388835040,1759408793486,1209.29648055,0.00017708,2]
[388835041,1759408801713,4494.40058175,0.00017708,2]
[388835042,1759408863142,156.88214,0.00025,30]
[388835043,1759408863446,156.88214,0.00025,30]
[388835044,1759408910265,-200.0,0.00017886,2]
[388835045,1759408926852,200.0,0.00017708,2]
[388835046,1759408938281,591.62,0.00028767,120]
[388835047,1759408961536,412.3561905,0.00016984,2]
[388835048,1759409020720,3669.3643305,0.0001712,2]
[388835049,1759409020744,10000.01,0.0001712,2]
[388835050,1759409020767,6330.6456695,0.0001712,2]
[388835051,1759409048286,221.1751487,0.00016984,2]
[388835052,1759409060910,469.4,0.0002876,120]
[388835053,1759409078779,-1200.0,0.00017972,2]
[388835054,1759409078809,-300.0,0.00017972,2]
[388835055,1759409102183,300.0,0.00017972,2]
[388835056,1759409102522,300.0,0.00017972,2]
[388835057,1759409103964,300.0,0.00017972,2]
[388835058,1759409104096,1200.0,0.00017972,2]
[388835063,1759409162900,300.0,0.00017972,2]
[388835097,1759409198225,2018.03816351,0.00017873,2]
[388835098,1759409222454,300.0,0.00017972,2]
[388835099,1759409237598,2281.97183649,0.00017886,2]
[388835100,1759409237624,10000.01,0.00017886,2]
[388835101,1759409237647,10000.01,0.00017886,2]
[388835102,1759409237673,10000.01,0.00017886,2]
[388835103,1759409237697,10000.01,0.00017886,2]
[388835104,1759409237721,10000.01,0.00017886,2]
[388835105,1759409237744,10000.01,0.00017886,2]
[388835106,1759409237766,10000.01,0.00017886,2]
[388835107,1759409237789,10000.01,0.00017886,2]
[388835108,1759409237811,10000.01,0.00017886,2]
[388835109,1759409242235,-1200.0,0.00017885,2]
[388835110,1759409245021,-9700.01,0.00017886,2]
[388835111,1759409245154,-10000.01,0.00017886,2]
[388835112,1759409245202,-10000.01,0.00017886,2]
[388835113,1759409246205,-10000.01,0.00017886,2]
[388835114,1759409246878,-10000.01,0.00017886,2]
[388835115,1759409246918,-10000.01,0.00017886,2]
[388835116,1759409246982,-10000.01,0.00017886,2]
[388835117,1759409247031,-10000.01,0.00017886,2]
[388835118,1759409247067,-10000.01,0.00017886,2]
[388835119,1759409247108,-10000.01,0.00017886,2]
[388835120,1759409256468,-159.574748,0.0001699,2]
[388835148,1759409264230,-10000.01,0.00017886,2]
[388835149,1759409264347,-10000.01,0.00017886,2]
[388835150,1759409264451,-5000.0,0.00017707,2]
[388835151,1759409264460,-5000.01,0.00017886,2]
[388835152,1759409264575,-10000.01,0.00017886,2]
[388835153,1759409264686,-10000.01,0.00017886,2]
[388835154,1759409264812,-10000.01,0.00017886,2]
[388835155,1759409264937,-10000.01,0.00017886,2]
[388835156,1759409265081,-10000.01,0.00017886,2]
[388835157,1759409265222,-10000.01,0.00017886,2]
[388835158,1759409265373,-10000.01,0.00017886,2]
[388835159,1759409274275,-10000.01,0.00017886,2]
[388835160,1759409274422,-10000.01,0.00017886,2]
[388835161,1759409274538,-10000.01,0.00017886,2]
[388835162,1759409274650,-10000.01,0.00017886,2]
[388835163,1759409274768,-10000.01,0.00017886,2]
[388835164,1759409274907,-10000.01,0.00017886,2]
[388835165,1759409275016,-10000.01,0.00017886,2]
[388835170,1759409275199,-10000.01,0.00017886,2]
[388835177,1759409275342,-3017.65816351,0.00017886,2]
[388835201,1759409279962,3964.69367298,0.00017886,2]
[388835202,1759409279985,1035.30632702,0.00017886,2]
[388835203,1759409280319,-300.0,0.000179,2]
[388835204,1759409282437,177.40921088,0.00017748,2]
[388835205,1759409288208,5000.0,0.000179,2]
[388835206,1759409289761,300.0,0.000179,2]
[388835207,1759409301576,300.0,0.000179,2]
[388835208,1759409303594,3622.60078912,0.000179,2]
[388835209,1759409303619,1377.39921088,0.000179,2]
[388835210,1759409308763,695.27489241,0.00017872,2]
[388835211,1759409312102,5000.0,0.000179,2]
[388835212,1759409312887,300.0,0.000179,2]
[388835213,1759409323692,300.0,0.000179,2]
[388835214,1759409327558,5000.0,0.000179,2]
[388835215,1759409334359,300.0,0.000179,2]
[388835216,1759409335561,4400.01,0.000179,2]
[388835217,1759409335584,599.99,0.000179,2]
[388835218,1759409341691,184.4854291,0.00017883,2]
[388835219,1759409351058,5000.0,0.000179,2]
[388835220,1759409359077,4215.5345709,0.000179,2]
[388835221,1759409359100,784.4654291,0.000179,2]
[388835222,1759409374588,5000.0,0.000179,2]
[388835223,1759409380336,2000.0,0.00017886,2]
[388835224,1759409380849,172.815,0.00017886,2]
[388835225,1759409380926,-577.42,0.0001798,3]
[388835226,1759409380956,-288.71,0.0001798,3]
[388835227,1759409380984,-866.17,0.0001798,3]
[388835228,1759409397593,5000.0,0.0001798,2]
[388835229,1759409399776,165.04515383,0.00017883,2]
[388835230,1759409405500,1370.36484617,0.00017884,2]
[388835231,1759409405526,10000.01,0.00017884,2]
[388835232,1759409405554,10000.01,0.00017884,2]
[388835233,1759409405580,10000.01,0.00017884,2]
[388835234,1759409405603,10000.01,0.00017884,2]
[388835235,1759409405627,10000.01,0.00017884,2]
[388835236,1759409405651,10000.01,0.00017884,2]
[388835237,1759409405674,10000.01,0.00017884,2]
[388835238,1759409405697,10000.01,0.00017884,2]
[388835239,1759409405720,10000.01,0.00017884,2]
[388835240,1759409406765,-200.0,0.00017884,2]
[388835241,1759409414260,-3775.0295709,0.00017884,2]
[388835242,1759409414391,-10000.01,0.00017884,2]
[388835243,1759409414540,-10000.01,0.00017884,2]
[388835244,1759409414708,-10000.01,0.00017884,2]
[388835245,1759409415208,-10000.01,0.00017884,2]
[388835246,1759409415324,-10000.01,0.00017884,2]
[388835247,1759409415819,-10000.01,0.00017884,2]
[388835248,1759409417966,-10000.01,0.00017884,2]
[388835249,1759409418525,-10000.01,0.00017884,2]
[388835250,1759409421987,-1318.5799793,0.00017705,2]
[388835251,1759409422011,-7362.8500414,0.00017705,2]
[388835252,1759409422164,-10000.01,0.00017884,2]
[388835253,1759409422315,-10000.01,0.00017884,2]
[388835254,1759409423054,-10000.01,0.00017884,2]
[388835255,1759409423073,-10000.01,0.00017884,2]
[388835256,1759409423091,-10000.01,0.00017884,2]
[388835257,1759409423119,-10000.01,0.00017884,2]
[388835258,1759409423133,-10000.01,0.00017884,2]
[388835259,1759409423831,-10000.01,0.00017884,2]
[388835311,1759409432638,-1078.39748926,0.00017705,2]
[388835321,1759409432733,-697.40003054,0.00017705,2]
[388835324,1759409432744,-13810.5483751,0.00017705,2]
[388835476,1759409435868,-358.95344586,0.00017705,2]
[388835488,1759409436679,5000.0,0.00017705,2]
[388835489,1759409437904,-184.38979694,0.00017705,2]
[388835512,1759409438652,-832.9999536,0.00017705,2]
[388835612,1759409443781,-217.51497273,0.00017705,2]
[388835619,1759409444103,-1164.49921368,0.00017705,2]
[388835620,1759409444182,-16655.29672229,0.00017705,2]
[388835621,1759409444192,-447.68838681,0.00017883,2]
[388835622,1759409444201,-500.0,0.00017883,2]
[388835623,1759409444210,-208.7458102,0.00017883,2]
[388835624,1759409444219,-500.0,0.00017883,2]
[388835625,1759409444228,-500.0,0.00017883,2]
[388835626,1759409444237,-500.0,0.00017883,2]
[388835627,1759409444247,-500.0,0.00017883,2]
[388835628,1759409444256,-296.17002807,0.00017883,2]
[388835629,1759409444266,-200.0,0.00017883,2]
[388835630,1759409444275,-500.0,0.00017883,2]
[388835631,1759409444284,-500.0,0.00017883,2]
[388835632,1759409444293,-521.51665698,0.00017883,2]
[388835633,1759409444302,-500.0,0.00017883,2]
[388835634,1759409444312,-500.0,0.00017883,2]
[388835635,1759409444321,-500.0,0.00017883,2]
[388835636,1759409444330,-500.0,0.00017883,2]
[388835637,1759409444339,-500.0,0.00017883,2]
[388835638,1759409444348,-500.0,0.00017883,2]
[388835639,1759409444357,-500.0,0.00017883,2]
[388835640,1759409444366,-500.0,0.00017883,2]
[388835641,1759409444375,-500.0,0.00017883,2]
[388835642,1759409444384,-500.0,0.00017883,2]
[388835643,1759409444393,-500.0,0.00017883,2]
[388835644,1759409444403,-500.0,0.00017883,2]
[388835645,1759409444412,-500.0,0.00017883,2]
[388835646,1759409444421,-500.0,0.00017883,2]
[388835647,1759409444430,-500.0,0.00017883,2]
[388835648,1759409444439,-278.21049777,0.00017883,2]
[388835649,1759409444448,-500.0,0.00017883,2]
[388835650,1759409444457,-500.0,0.00017883,2]
[388835651,1759409444692,-500.0,0.00017883,2]
[388835652,1759409444703,-500.0,0.00017883,2]
[388835653,1759409444712,-500.0,0.00017883,2]
[388835654,1759409444722,-500.0,0.00017883,2]
[388835655,1759409444731,-500.0,0.00017883,2]
[388835656,1759409444741,-500.0,0.00017883,2]
[388835657,1759409444751,-500.0,0.00017883,2]
[388835658,1759409444760,-500.0,0.00017883,2]
[388835659,1759409444770,-446.55548048,0.00017883,2]
[388835660,1759409444780,-500.0,0.00017883,2]
[388835661,1759409444789,-500.0,0.00017883,2]
[388835662,1759409444798,-500.0,0.00017883,2]
[388835663,1759409444807,-500.0,0.00017883,2]
[388835664,1759409444817,-500.0,0.00017883,2]
[388835665,1759409444826,-500.0,0.00017883,2]
[388835666,1759409444836,-500.0,0.00017883,2]
[388835667,1759409444845,-230.23878831,0.00017883,2]
[388835668,1759409444854,-500.0,0.00017883,2]
[388835669,1759409444863,-500.0,0.00017883,2]
[388835670,1759409444873,-500.0,0.00017883,2]
[388835671,1759409444882,-500.0,0.00017883,2]
[388835672,1759409444891,-500.0,0.00017883,2]
[388835673,1759409444901,-500.0,0.00017883,2]
[388835674,1759409444910,-500.0,0.00017883,2]
[388835675,1759409444919,-500.0,0.00017883,2]
[388835676,1759409444928,-500.0,0.00017883,2]
[388835677,1759409444938,-500.0,0.00017883,2]
[388835678,1759409444947,-500.0,0.00017883,2]
[388835679,1759409444957,-500.0,0.00017883,2]
[388835680,1759409444966,-214.25855608,0.00017883,2]
[388835681,1759409444975,-500.0,0.00017883,2]
[388835682,1759409444984,-500.0,0.00017883,2]
[388835683,1759409444994,-500.0,0.00017883,2]
[388835684,1759409445003,-500.0,0.00017883,2]
[388835685,1759409445012,-165.20791037,0.00017883,2]
[388835686,1759409445021,-500.0,0.00017883,2]
[388835687,1759409445030,-500.0,0.00017883,2]
[388835688,1759409445039,-400.0,0.00017883,2]
[388835689,1759409445049,-500.0,0.00017883,2]
[388835690,1759409445058,-500.0,0.00017883,2]
[388835691,1759409445067,-500.0,0.00017883,2]
[388835692,1759409445076,-500.0,0.00017883,2]
[388835693,1759409445085,-500.0,0.00017883,2]
[388835694,1759409445095,-325.17873213,0.00017883,2]
[388835695,1759409445103,-500.0,0.00017883,2]
[388835696,1759409445112,-500.0,0.00017883,2]
[388835697,1759409445122,-500.0,0.00017883,2]
[388835698,1759409445131,-500.0,0.00017883,2]
[388835699,1759409445140,-500.0,0.00017883,2]
[388835700,1759409445149,-500.0,0.00017883,2]
[388835701,1759409445158,-500.0,0.00017883,2]
[388835702,1759409445167,-500.0,0.00017883,2]
[388835703,1759409445177,-500.0,0.00017883,2]
[388835704,1759409445186,-500.0,0.00017883,2]
[388835705,1759409445195,-500.0,0.00017883,2]
[388835706,1759409445204,-500.0,0.00017883,2]
[388835707,1759409445213,-500.0,0.00017883,2]
[388835708,1759409445222,-500.0,0.00017883,2]
[388835709,1759409445232,-500.0,0.00017883,2]
[388835710,1759409445242,-500.0,0.00017883,2]
[388835711,1759409445251,-500.0,0.00017883,2]
[388835712,1759409445260,-500.0,0.00017883,2]
[388835713,1759409445269,-500.0,0.00017883,2]
[388835714,1759409445278,-500.0,0.00017883,2]
[388835715,1759409445287,-500.0,0.00017883,2]
[388835716,1759409445296,-501.91686028,0.00017883,2]
[388835717,1759409445306,-500.0,0.00017883,2]
[388835718,1759409445315,-500.0,0.00017883,2]
[388835719,1759409445324,-500.0,0.00017883,2]
[388835720,1759409445333,-500.0,0.00017883,2]
[388835721,1759409445342,-500.0,0.00017883,2]
[388835722,1759409445351,-500.0,0.00017883,2]
[388835723,1759409445360,-500.0,0.00017883,2]
[388835724,1759409445369,-500.0,0.00017883,2]
[388835725,1759409445380,-500.0,0.00017883,2]
[388835726,1759409445389,-275.95308635,0.00017883,2]
[388835727,1759409445398,-500.0,0.00017883,2]
[388835728,1759409445407,-500.0,0.00017883,2]
[388835729,1759409445416,-500.0,0.00017883,2]
[388835730,1759409445425,-500.0,0.00017883,2]
[388835731,1759409445434,-500.0,0.00017883,2]
[388835732,1759409445444,-500.0,0.00017883,2]
[388835733,1759409445453,-500.0,0.00017883,2]
[388835734,1759409445462,-500.0,0.00017883,2]
[388835735,1759409445472,-500.0,0.00017883,2]
[388835736,1759409445481,-500.0,0.00017883,2]
[388835737,1759409445491,-500.0,0.00017883,2]
[388835738,1759409445506,-500.0,0.00017883,2]
[388835739,1759409445515,-500.0,0.00017883,2]
[388835740,1759409445525,-500.0,0.00017883,2]
[388835741,1759409445534,-500.0,0.00017883,2]
[388835742,1759409445546,-500.0,0.00017883,2]
[388835743,1759409445555,-114654.35558293,0.00017884,2]
[388835744,1759409445565,-500.0,0.00017973,2]
[388835745,1759409445579,-500.0,0.00017973,2]
[388835746,1759409445588,-500.0,0.00017973,2]
[388835747,1759409445597,-455.59347907,0.00017973,2]
[388835748,1759409445606,-500.0,0.00017973,2]
[388835749,1759409445616,-500.0,0.00017973,2]
[388835750,1759409445624,-500.0,0.00017973,2]
[388835751,1759409445633,-500.0,0.00017973,2]
[388835752,1759409445643,-500.0,0.00017973,2]
[388835753,1759409445652,-500.0,0.00017973,2]
[388835754,1759409445661,-300.0,0.00017982,2]
[388835755,1759409445670,-300.0,0.00017982,2]
[388835756,1759409445680,-300.0,0.00017982,2]
[388835757,1759409445689,-300.0,0.00017982,2]
[388835758,1759409445699,-1200.0,0.00017982,2]
[388835759,1759409445708,-50000.0,0.00017984,2]
[388835760,1759409445718,-182.66,0.00017986,2]
[388835761,1759409445727,-500.0,0.00017988,2]
[388835762,1759409445737,-94115.20840698,0.0001799,2]
[388835763,1759409445747,-10431.82764668,0.00018,2]
[388835764,1759409445757,-470.60808124,0.0001805,2]
[388835765,1759409445766,-5041.5285954,0.00018082,2]
[388835766,1759409445777,-4945.93904828,0.000181,2]
[388835767,1759409445786,-5393.96918401,0.000181,2]
[388835768,1759409445796,-500.0,0.00018173,2]
[388835769,1759409445805,-500.0,0.00018173,2]
[388835770,1759409445814,-500.0,0.00018173,2]
[388835771,1759409445824,-500.0,0.00018173,2]
[388835772,1759409445833,-500.0,0.00018173,2]
[388835773,1759409445842,-500.0,0.00018173,2]
[388835774,1759409445851,-500.0,0.00018173,2]
[388835775,1759409445860,-455.02379375,0.00018173,2]
[388835776,1759409445869,-500.0,0.00018173,2]
[388835777,1759409445878,-500.5264877,0.00018173,2]
[388835778,1759409445888,-170.24390927,0.00018189,2]
[388835779,1759409445897,-178.81884726,0.000182,2]
[388835780,1759409445906,-178.81884726,0.000182,2]
[388835781,1759409445915,-1461.89333019,0.00018258,2]
[388835782,1759409445925,-182.66,0.0001826,2]
[388835783,1759409445934,-500.0,0.00018262,2]
[388835784,1759409445943,-199.40374989,0.00018296,2]
[388835785,1759409445952,-321.7216683,0.000183,2]
[388835786,1759409445961,-171.7065719,0.000183,2]
[388835787,1759409445970,-1195.3630663,0.000183,2]
[388835788,1759409445980,-5393.96918399,0.00018316,2]
[388835789,1759409445989,-300.0,0.00018347,2]
[388835791,1759409445998,-300.0,0.00018347,2]
[388835793,1759409446007,-300.0,0.00018347,2]
[388835795,1759409446016,-300.0,0.00018347,2]
[388835797,1759409446026,-300.0,0.00018347,2]
[388835798,1759409446035,-300.0,0.00018347,2]
[388835799,1759409446045,-300.0,0.00018347,2]
[388835801,1759409446054,-300.0,0.00018347,2]
[388835803,1759409446063,-300.0,0.00018347,2]
[388835804,1759409446074,-300.0,0.00018347,2]
[388835805,1759409446083,-300.0,0.00018347,2]
[388835806,1759409446092,-300.0,0.00018347,2]
[388835807,1759409446101,-300.0,0.00018347,2]
[388835808,1759409446111,-300.0,0.00018347,2]
[388835809,1759409446120,-300.0,0.00018347,2]
[388835810,1759409446129,-600.0,0.00018347,2]
[388835811,1759409446138,-682.72222093,0.00018429,2]
[388835812,1759409446147,-441.42,0.00018506,2]
[388835813,1759409446156,-500.0,0.00018521,2]
[388835814,1759409446165,-1000.0,0.00018521,2]
[388835815,1759409446174,-1000.0,0.00018521,2]
[388835816,1759409446183,-1000.0,0.00018521,2]
[388835817,1759409446192,-503.92433954,0.00018521,2]
[388835818,1759409446201,-1000.0,0.00018521,2]
[388835819,1759409446210,-1000.0,0.00018521,2]
[388835820,1759409446220,-1000.0,0.00018521,2]
[388835821,1759409446229,-1000.0,0.00018521,2]
[388835822,1759409446238,-5393.96918399,0.00018532,2]
[388835824,1759409446249,-182.66149864,0.00018534,2]
[388835825,1759409446258,-500.0,0.00018536,2]
[388835827,1759409446268,-574.0,0.00018606,2]
[388835828,1759409446277,-552.37284165,0.0001862,2]
[388835829,1759409446286,-574.0,0.00018621,2]
[388835830,1759409446296,-336.0,0.00018623,2]
[388835831,1759409446305,-644.84507885,0.00018673,2]
[388835832,1759409446314,-654.803,0.00018678,2]
[388835833,1759409446323,-151.0,0.000187,2]
[388835834,1759409446332,-1000.0,0.00018721,2]
[388835835,1759409446341,-1005.63725432,0.00018721,2]
[388835836,1759409446350,-1000.0,0.00018721,2]
[388835837,1759409446359,-1000.0,0.00018721,2]
[388835838,1759409446368,-1000.0,0.00018721,2]
[388835839,1759409446377,-1000.0,0.00018721,2]
[388835840,1759409446386,-5393.96918399,0.00018747,2]
[388835841,1759409446397,-168.0,0.0001875,2]
[388835842,1759409446406,-268.0,0.00018755,2]
[388835843,1759409446416,-151.0,0.000188,2]
[388835844,1759409446426,-500.0,0.0001881,2]
[388835845,1759409446435,-302.72757547,0.000189,2]
[388835846,1759409446444,-336.0,0.00018929,2]
[388835847,1759409446454,-340.0,0.00018933,2]
[388835848,1759409446463,-176.75575823,0.00018963,2]
[388835849,1759409446472,-5393.96918399,0.00018963,2]
[388835850,1759409446482,-10000.0,0.00018963,2]
[388835852,1759409446491,-155.0,0.00018972,2]
[388835853,1759409446505,-501.25841473,0.00018973,2]
[388835854,1759409446515,-500.94328462,0.00018973,2]
[388835855,1759409446524,-500.0,0.00018973,2]
[388835856,1759409446533,-500.0,0.00018973,2]
[388835857,1759409446544,-607.32738496,0.00018973,2]
[388835858,1759409446553,-500.0,0.00018973,2]
[388835859,1759409446564,-500.0,0.00018973,2]
[388835860,1759409446575,-500.0,0.00018973,2]
[388835861,1759409446584,-500.0,0.00018973,2]
[388835862,1759409446594,-500.0,0.00018973,2]
[388835863,1759409446604,-500.0,0.00018973,2]
[388835864,1759409446613,-500.0,0.00018973,2]
[388835865,1759409446622,-500.0,0.00018973,2]
[388835866,1759409446633,-500.0,0.00018973,2]
[388835867,1759409446642,-501.88836466,0.00018973,2]
[388835868,1759409446651,-500.0,0.00018973,2]
[388835869,1759409446659,-500.0,0.00018973,2]
[388835870,1759409446668,-500.0,0.00018973,2]
[388835871,1759409446677,-593.99928753,0.00018973,2]
[388835872,1759409446686,-500.0,0.00018973,2]
[388835873,1759409446695,-500.0,0.00018973,2]
[388835874,1759409446704,-500.0,0.00018973,2]
[388835875,1759409446713,-500.0,0.00018973,2]
[388835876,1759409446723,-500.0,0.00018973,2]
[388835877,1759409446732,-500.0,0.00018973,2]
[388835878,1759409446743,-191.01627892,0.00018973,2]
[388835879,1759409446753,-500.0,0.00018973,2]
[388835880,1759409446762,-500.0,0.00018973,2]
[388835881,1759409446771,-500.0,0.00018973,2]
[388835882,1759409446780,-500.73198723,0.00018973,2]
[388835883,1759409446790,-500.0,0.00018973,2]
[388835884,1759409446799,-500.0,0.00018973,2]
[388835885,1759409446808,-500.0,0.00018973,2]
[388835887,1759409446818,-500.0,0.00018973,2]
[388835888,1759409446827,-500.0,0.00018973,2]
[388835889,1759409446836,-170.78737528,0.00018973,2]
[388835890,1759409446845,-500.0,0.00018973,2]
[388835891,1759409446855,-501.03122643,0.00018973,2]
[388835892,1759409446864,-500.0,0.00018973,2]
[388835893,1759409446873,-500.0,0.00018973,2]
[388835894,1759409446883,-500.0,0.00018973,2]
[388835895,1759409446892,-500.0,0.00018973,2]
[388835896,1759409446901,-500.0,0.00018973,2]
[388835897,1759409446910,-500.0,0.00018973,2]
[388835898,1759409446919,-500.40529934,0.00018973,2]
[388835899,1759409446928,-500.0,0.00018973,2]
[388835900,1759409446939,-500.0,0.00018973,2]
[388835901,1759409446947,-500.59302797,0.00018973,2]
[388835902,1759409446957,-500.0,0.00018973,2]
[388835903,1759409446966,-502.36042457,0.00018973,2]
[388835904,1759409446976,-500.0,0.00018973,2]
[388835905,1759409446985,-501.9423807,0.00018973,2]
[388835906,1759409446994,-500.0,0.00018973,2]
[388835907,1759409447003,-502.80244566,0.00018973,2]
[388835908,1759409447012,-500.0,0.00018973,2]
[388835909,1759409447021,-151.0,0.00018978,2]
[388835910,1759409447030,-272.46333137,0.00018978,2]
[388835911,1759409447039,-251.31195958,0.00018978,2]
[388835912,1759409447048,-151.0,0.00018978,2]
[388835913,1759409447057,-164.72407582,0.00018978,2]
[388835914,1759409447065,-151.0,0.00018978,2]
[388835915,1759409447074,-151.0,0.00018978,2]
[388835916,1759409447083,-174.43119571,0.00018978,2]
[388835917,1759409447092,-500.0,0.00018978,2]
[388835918,1759409447102,-151.0,0.00018978,2]
[388835919,1759409447112,-151.0,0.00018978,2]
[388835920,1759409447121,-977.0,0.00018978,2]
[388835921,1759409447130,-151.0,0.00018978,2]
[388835922,1759409447139,-151.0,0.00018978,2]
[388835923,1759409447148,-500.0,0.00018978,2]
[388835924,1759409447158,-394.939253,0.00018998,2]
[388835925,1759409447168,-394.939253,0.00018998,2]
[388835926,1759409447177,-152.853322,0.00018998,2]
[388835927,1759409447187,-394.939253,0.00018998,2]
[388835928,1759409447196,-394.939253,0.00018998,2]
[388835929,1759409447205,-151.0,0.00018998,2]
[388835930,1759409447214,-151.0,0.00018998,2]
[388835931,1759409447223,-472.87375,0.00018998,2]
[388835932,1759409447232,-472.87375,0.00018998,2]
[388835933,1759409447241,-472.87375,0.00018998,2]
[388835934,1759409447250,-472.87375,0.00018998,2]
[388835935,1759409447260,-151.0,0.00018998,2]
[388835936,1759409447269,-151.0,0.00018998,2]
[388835937,1759409447278,-151.0,0.00018998,2]
[388835938,1759409447288,-260.421891,0.00018998,2]
[388835939,1759409447297,-151.0,0.00018998,2]
[388835940,1759409447306,-260.421891,0.00018998,2]
[388835941,1759409447315,-260.421891,0.00018998,2]
[388835942,1759409447324,-151.0,0.00018998,2]
[388835943,1759409447333,-260.421891,0.00018998,2]
[388835944,1759409447343,-151.0,0.00018998,2]
[388835945,1759409447351,-151.0,0.00018998,2]
[388835946,1759409447361,-151.0,0.00018998,2]
[388835947,1759409447370,-151.0,0.00018998,2]
[388835948,1759409447379,-151.0,0.00018998,2]
[388835949,1759409447387,-151.0,0.00018998,2]
[388835950,1759409447396,-151.0,0.00018998,2]
[388835951,1759409447405,-151.0,0.00018998,2]
[388835952,1759409447415,-151.0,0.00018998,2]
[388835953,1759409447424,-151.0,0.00018998,2]
[388835954,1759409447434,-151.0,0.00018998,2]
[388835955,1759409447443,-151.0,0.00018998,2]
[388835956,1759409447452,-151.0,0.00018998,2]
[388835957,1759409447461,-300.781635,0.00018998,2]
[388835958,1759409447470,-152.365973,0.00018998,2]
[388835959,1759409447480,-151.0,0.00018998,2]
[388835960,1759409447489,-151.0,0.00018998,2]
[388835961,1759409447502,-151.0,0.00018998,2]
[388835962,1759409447512,-151.0,0.00018998,2]
[388835963,1759409447522,-151.0,0.00018998,2]
[388835964,1759409447532,-151.0,0.00018998,2]
[388835965,1759409447543,-151.0,0.00018998,2]
[388835966,1759409447552,-151.0,0.00018998,2]
[388835967,1759409447562,-151.0,0.00018998,2]
[388835968,1759409447574,-151.0,0.00018998,2]
[388835969,1759409447584,-151.0,0.00018998,2]
[388835970,1759409447593,-151.0,0.00018998,2]
[388835971,1759409447602,-151.0,0.00018998,2]
[388835972,1759409447611,-240.76013,0.00018998,2]
[388835973,1759409447620,-151.0,0.00018998,2]
[388835974,1759409447630,-151.0,0.00018998,2]
[388835975,1759409447639,-151.0,0.00018998,2]
[388835976,1759409447649,-151.0,0.00018998,2]
[388835977,1759409447659,-151.0,0.00018998,2]
[388835978,1759409447668,-151.0,0.00018998,2]
[388835979,1759409447678,-151.0,0.00018998,2]
[388835980,1759409447687,-151.0,0.00018998,2]
[388835981,1759409447696,-151.0,0.00018998,2]
[388835982,1759409447705,-151.0,0.00018998,2]
[388835983,1759409447714,-151.0,0.00018998,2]
[388835984,1759409447723,-151.0,0.00018998,2]